[Event "77th GEO-ch Women 2020"]
[Site "Tbilisi"]
[Date "2020.07.21"]
[Round "1.1"]
[White "Vakhania, Aleksandra"]
[Black "Khotenashvili, Bela"]
[Result "0-1"]
[ECO "A45"]
[WhiteElo "2138"]
[BlackElo "2458"]
[Annotator "ChessBase"]
[PlyCount "82"]
[EventDate "2020.07.21"]
[EventType "tourn"]
[EventCountry "GEO"]
[SourceTitle "playchess.com"]
[Source "ChessBase"]
[SourceQuality "1"]
[TimeControl "5400+30"]

1. d4 {[%emt 0:00:00]} Nf6 {[%emt 0:00:00]} 2. Bg5 {[%emt 0:00:00]} Ne4 {[%emt 0:00:22]} 3. Bf4 {[%emt 0:00:16]} d5 {[%emt 0:01:57]} 4. f3 {[%emt 0:01:56]} Nf6 {[%emt 0:01:41]} 5. e4 {[%emt 0:00:30]} c5 {[%emt 0:04:15]} 6. Nc3 {[%emt 0:11:54]} e6 {[%emt 0:01:24]} 7. exd5 {[%emt 0:06:12]} Nxd5 {[%emt 0:06:25]} 8. Bb5+ {[%emt 0:07:03]} Nc6 {[%emt 0:01:54]} 9. Nxd5 {[%emt 0:00:50]} Qxd5 {[%emt 0:10:12]} 10. c4 {[%emt 0:04:32]} Qxd4 {[%emt 0:04:01]} 11. Qa4 {[%emt 0:19:49]} Qxf4 {[%emt 0:12:17]} 12. Bxc6+ {[%emt 0:01:17]} Ke7 {[%emt 0:00:04]} 13. Rd1 {[%emt 0:08:39]} Qc7 {[%emt 0:04:42]} 14. Be4 {[%emt 0:07:39]} f5 {[%emt 0:00:22]} 15. Bb1 {[%emt 0:00:21]} Kf7 {[%emt 0:05:12]} 16. Ne2 {[%emt 0:05:56]} Bd6 {[%emt 0:03:06]} 17. Kf2 {[%emt 0:01:06]} Bd7 {[%emt 0:02:04]} 18. Qc2 {[%emt 0:00:57]} Bc6 {[%emt 0:01:52]} 19. h4 {[%emt 0:06:23]} Rad8 {[%emt 0:03:08]} 20. h5 {[%emt 0:00:15]} Be5 {[%emt 0:01:05]} 21. Qc1 {[%emt 0:01:06]} Rxd1 {[%emt 0:03:11]} 22. Rxd1 {[%emt 0:00:20]} Rd8 {[%emt 0:00:35]} 23. b3 {[%emt 0:03:44]} Bb2 {[%emt 0:11:07]} 24. Qc2 {[%emt 0:01:01]} Rxd1 {[%emt 0:00:05]} 25. Qxd1 {[%emt 0:00:06]} Qh2 {[%emt 0:00:19]} 26. Qd2 {[%emt 0:02:52]} Bf6 {[%emt 0:00:48]} 27. Qf4 {[%emt 0:02:04]} Qxh5 {[%emt 0:02:15]} 28. Qc7+ {[%emt 0:00:15]} Be7 {[%emt 0:00:38]} 29. Nf4 {[%emt 0:00:47]} Qh4+ {[%emt 0:00:31]} 30. Ke2 {[%emt 0:00:29]} Qh2 {[%emt 0:10:55]} 31. Qe5 {[%emt 0:05:29]} Bd7 {[%emt 0:00:18]} 32. Qc7 {[%emt 0:00:43]} g5 {[%emt 0:03:41]} 33. Qxd7 {[%emt 0:00:24]} gxf4 {[%emt 0:01:40]} 34. Kf2 {[%emt 0:00:44]} Qh4+ {[%emt 0:00:05]} 35. Ke2 {[%emt 0:00:04]} Qh1 {[%emt 0:00:06]} 36. Bd3 {[%emt 0:01:15]} Qxg2+ {[%emt 0:00:07]} 37. Kd1 {[%emt 0:00:04]} Qxf3+ {[%emt 0:00:39]} 38. Be2 {[%emt 0:00:10]} Qh1+ {[%emt 0:00:04]} 39. Kc2 {[%emt 0:00:14]} Qe4+ {[%emt 0:00:34]} 40. Bd3 {[%emt 0:00:18]} Qc6 {[%emt 0:00:45]} 41. Qxc6 {[%emt 0:00:42]} bxc6 {[%emt 0:00:01]} 0-1

[Event "77th GEO-ch Women 2020"]
[Site "Tbilisi"]
[Date "2020.07.21"]
[Round "1.3"]
[White "Gvetadze, Sofio"]
[Black "Melia, Salome"]
[Result "1-0"]
[ECO "B30"]
[WhiteElo "2308"]
[BlackElo "2370"]
[Annotator "ChessBase"]
[PlyCount "101"]
[EventDate "2020.07.21"]
[EventType "tourn"]
[EventCountry "GEO"]
[SourceTitle "playchess.com"]
[Source "ChessBase"]
[SourceQuality "1"]
[TimeControl "5400+30"]

1. e4 {[%emt 0:00:00]} c5 {[%emt 0:00:00]} 2. Nf3 {[%emt 0:00:00]} Nc6 {[%emt 0:00:00]} 3. c3 {[%emt 0:00:06]} d5 {[%emt 0:05:30]} 4. exd5 {[%emt 0:00:07]} Qxd5 {[%emt 0:00:03]} 5. d4 {[%emt 0:00:08]} Bg4 {[%emt 0:01:38]} 6. Be2 {[%emt 0:00:11]} e6 {[%emt 0:01:09]} 7. O-O {[%emt 0:00:20]} Nf6 {[%emt 0:00:34]} 8. Be3 {[%emt 0:01:07]} cxd4 {[%emt 0:00:18]} 9. cxd4 {[%emt 0:00:04]} Be7 {[%emt 0:04:12]} 10. Nc3 {[%emt 0:00:15]} Qd6 {[%emt 0:01:53]} 11. Qb3 {[%emt 0:11:29]} O-O {[%emt 0:04:54]} 12. Rad1 {[%emt 0:03:46]} Qb4 {[%emt 0:05:16]} 13. Qc2 {[%emt 0:02:03]} Bf5 {[%emt 0:02:36]} 14. Qc1 {[%emt 0:01:53]} Rac8 {[%emt 0:08:12]} 15. a3 {[%emt 0:09:50]} Qa5 {[%emt 0:07:28]} 16. Qa1 {[%emt 0:18:33]} Ne4 {[%emt 0:06:33]} 17. Nxe4 {[%emt 0:03:03]} Bxe4 {[%emt 0:00:12]} 18. Nd2 {[%emt 0:02:39]} Bd5 {[%emt 0:01:10]} 19. b4 {[%emt 0:28:36]} Qa4 {[%emt 0:12:45]} 20. Rb1 {[%emt 0:02:27]} Qc2 {[%emt 0:03:39]} 21. Rfc1 {[%emt 0:00:56]} Qg6 {[%emt 0:00:13]} 22. Bf3 {[%emt 0:00:29]} Rcd8 {[%emt 0:05:22]} 23. b5 {[%emt 0:00:50]} Na5 {[%emt 0:02:49]} 24. Bxd5 {[%emt 0:02:42]} Rxd5 {[%emt 0:06:38]} 25. Qc3 {[%emt 0:00:20]} b6 {[%emt 0:00:16]} 26. Qc7 {[%emt 0:02:40]} Bxa3 {[%emt 0:07:56]} 27. Re1 {[%emt 0:03:14]} Bd6 {[%emt 0:08:44]} 28. Qxa7 {[%emt 0:00:26]} Rb8 {[%emt 0:01:13]} 29. Rec1 {[%emt 0:01:20]} h6 {[%emt 0:01:12]} 30. Nf3 {[%emt 0:01:12]} Nc4 {[%emt 0:01:47]} 31. Rb3 {[%emt 0:00:06]} Nxe3 {[%emt 0:00:32]} 32. fxe3 {[%emt 0:00:07]} Qe4 {[%emt 0:00:42]} 33. Rf1 {[%emt 0:03:39]} Qc2 {[%emt 0:00:31]} 34. Rbb1 {[%emt 0:01:31]} Rf5 {[%emt 0:00:29]} 35. Qd7 {[%emt 0:00:38]} Bf8 {[%emt 0:00:30]} 36. Ne5 {[%emt 0:00:13]} Qe4 {[%emt 0:00:32]} 37. Rxf5 {[%emt 0:00:21]} exf5 {[%emt 0:00:28]} 38. Qxf7+ {[%emt 0:00:09]} Kh7 {[%emt 0:00:31]} 39. Qg6+ {[%emt 0:00:29]} Kg8 {[%emt 0:00:18]} 40. Rf1 {[%emt 0:00:26]} Qxe3+ {[%emt 0:00:34]} 41. Kh1 {[%emt 0:00:04]} Qxd4 {[%emt 0:00:39]} 42. Qf7+ {[%emt 0:00:16]} Kh7 {[%emt 0:00:31]} 43. Qxf5+ {[%emt 0:00:24]} Kg8 {[%emt 0:00:24]} 44. Qf7+ {[%emt 0:00:17]} Kh7 {[%emt 0:00:18]} 45. Nd7 {[%emt 0:00:12]} Bd6 {[%emt 0:00:46]} 46. Qf5+ {[%emt 0:01:14]} Kh8 {[%emt 0:00:26]} 47. Nxb8 {[%emt 0:00:09]} Qh4 {[%emt 0:00:33]} 48. Qc8+ {[%emt 0:01:06]} Kh7 {[%emt 0:00:05]} 49. Qc2+ {[%emt 0:00:08]} Kh8 {[%emt 0:00:27]} 50. g3 {[%emt 0:00:21]} Qh3 {[%emt 0:00:57]} 51. Qg2 {[%emt 0:00:08]} 1-0

[Event "77th GEO-ch Women 2020"]
[Site "Tbilisi"]
[Date "2020.07.21"]
[Round "1.4"]
[White "Khukhashvili, Sopiko"]
[Black "Arabidze, Meri"]
[Result "0-1"]
[ECO "C47"]
[WhiteElo "2339"]
[BlackElo "2428"]
[Annotator "ChessBase"]
[PlyCount "72"]
[EventDate "2020.07.21"]
[EventType "tourn"]
[EventCountry "GEO"]
[SourceTitle "playchess.com"]
[Source "ChessBase"]
[SourceQuality "1"]
[TimeControl "5400+30"]

1. e4 {[%emt 0:00:00]} e5 {[%emt 0:00:00]} 2. Nf3 {[%emt 0:00:00]} Nc6 {[%emt 0:00:00]} 3. Nc3 {[%emt 0:00:12]} Nf6 {[%emt 0:00:00]} 4. d4 {[%emt 0:00:19]} exd4 {[%emt 0:00:07]} 5. Nxd4 {[%emt 0:00:06]} Bb4 {[%emt 0:00:18]} 6. Nxc6 {[%emt 0:00:19]} bxc6 {[%emt 0:00:04]} 7. Bd3 {[%emt 0:00:04]} d5 {[%emt 0:00:27]} 8. exd5 {[%emt 0:00:56]} O-O {[%emt 0:00:09]} 9. O-O {[%emt 0:00:15]} cxd5 {[%emt 0:00:20]} 10. Bg5 {[%emt 0:00:12]} c6 {[%emt 0:00:21]} 11. Qf3 {[%emt 0:00:12]} Bd6 {[%emt 0:00:24]} 12. h3 {[%emt 0:00:48]} Rb8 {[%emt 0:00:45]} 13. Na4 {[%emt 0:00:23]} h6 {[%emt 0:03:02]} 14. Be3 {[%emt 0:03:18]} Ne4 {[%emt 0:07:15]} 15. Qh5 {[%emt 0:04:51]} f5 {[%emt 0:14:42]} 16. Bxe4 {[%emt 0:21:19]} fxe4 {[%emt 0:00:54]} 17. c4 {[%emt 0:01:02]} Rf5 {[%emt 0:06:45]} 18. Qe2 {[%emt 0:01:29]} Qe7 {[%emt 0:04:17]} 19. cxd5 {[%emt 0:11:28]} Qe5 {[%emt 0:05:20]} 20. g3 {[%emt 0:00:30]} cxd5 {[%emt 0:02:11]} 21. Rfc1 {[%emt 0:00:55]} Bd7 {[%emt 0:04:21]} 22. Nc5 {[%emt 0:09:43]} Rxb2 {[%emt 0:11:05]} 23. Qe1 {[%emt 0:09:20]} Bb5 {[%emt 0:04:05]} 24. Nb3 {[%emt 0:03:56]} Rxb3 {[%emt 0:11:45]} 25. axb3 {[%emt 0:03:31]} d4 {[%emt 0:00:07]} 26. f4 {[%emt 0:03:25]} Qf6 {[%emt 0:01:55]} 27. Bd2 {[%emt 0:05:17]} e3 {[%emt 0:00:51]} 28. Bb4 {[%emt 0:00:16]} a6 {[%emt 0:01:14]} 29. Bxd6 {[%emt 0:03:58]} Qxd6 {[%emt 0:00:09]} 30. b4 {[%emt 0:01:35]} Rf8 {[%emt 0:02:24]} 31. Rc5 {[%emt 0:11:36]} Re8 {[%emt 0:01:16]} 32. Qd1 {[%emt 0:01:03]} d3 {[%emt 0:02:53]} 33. Qh5 {[%emt 0:00:22]} e2 {[%emt 0:02:03]} 34. Kh2 {[%emt 0:02:23]} Qd4 {[%emt 0:03:50]} 35. h4 {[%emt 0:01:31]} Qxa1 {[%emt 0:01:06]} 36. Rxb5 {[%emt 0:00:10]} e1=Q {[%emt 0:00:16]} 0-1

[Event "77th GEO-ch Women 2020"]
[Site "Tbilisi"]
[Date "2020.07.21"]
[Round "1.5"]
[White "Batsiashvili, Nino"]
[Black "Javakhishvili, Lela"]
[Result "1-0"]
[ECO "D40"]
[WhiteElo "2457"]
[BlackElo "2475"]
[Annotator "ChessBase"]
[PlyCount "83"]
[EventDate "2020.07.21"]
[EventType "tourn"]
[EventCountry "GEO"]
[SourceTitle "playchess.com"]
[Source "ChessBase"]
[SourceQuality "1"]
[TimeControl "5400+30"]

1. d4 {[%emt 0:00:00]} Nf6 {[%emt 0:01:09]} 2. c4 {[%emt 0:00:00]} e6 {[%emt 0:00:12]} 3. Nf3 {[%emt 0:00:00]} d5 {[%emt 0:01:00]} 4. Nc3 {[%emt 0:00:53]} c5 {[%emt 0:00:09]} 5. e3 {[%emt 0:02:06]} Nc6 {[%emt 0:00:10]} 6. cxd5 {[%emt 0:00:28]} Nxd5 {[%emt 0:02:40]} 7. Bc4 {[%emt 0:05:45]} cxd4 {[%emt 0:02:26]} 8. exd4 {[%emt 0:01:49]} Be7 {[%emt 0:02:45]} 9. O-O {[%emt 0:02:48]} O-O {[%emt 0:05:44]} 10. Re1 {[%emt 0:11:12]} b6 {[%emt 0:15:24]} 11. a3 {[%emt 0:10:31]} Nxc3 {[%emt 0:01:34]} 12. bxc3 {[%emt 0:00:04]} Bb7 {[%emt 0:00:31]} 13. Ba2 {[%emt 0:08:07]} Rc8 {[%emt 0:02:26]} 14. Qd3 {[%emt 0:01:07]} Bf6 {[%emt 0:03:45]} 15. a4 {[%emt 0:09:41]} Re8 {[%emt 0:06:58]} 16. h4 {[%emt 0:13:08]} Ne7 {[%emt 0:08:49]} 17. Ng5 {[%emt 0:08:02]} Ng6 {[%emt 0:06:52]} 18. Bd2 {[%emt 0:04:01]} Bxg5 {[%emt 0:04:52]} 19. Bxg5 {[%emt 0:03:38]} Qc7 {[%emt 0:00:09]} 20. Re3 {[%emt 0:00:32]} Nf4 {[%emt 0:05:04]} 21. Bxf4 {[%emt 0:00:13]} Qxf4 {[%emt 0:00:02]} 22. Rae1 {[%emt 0:05:22]} Red8 {[%emt 0:05:40]} 23. Rg3 {[%emt 0:02:51]} Bd5 {[%emt 0:05:13]} 24. Bb1 {[%emt 0:00:05]} f5 {[%emt 0:00:25]} 25. h5 {[%emt 0:02:09]} Rc7 {[%emt 0:02:21]} 26. Qe2 {[%emt 0:01:22]} Qh6 {[%emt 0:06:20]} 27. Ba2 {[%emt 0:01:51]} f4 {[%emt 0:02:03]} 28. Rh3 {[%emt 0:00:24]} Qf6 {[%emt 0:04:03]} 29. Bxd5 {[%emt 0:03:29]} exd5 {[%emt 0:00:02]} 30. Rf3 {[%emt 0:01:25]} Rf7 {[%emt 0:02:28]} 31. Qd2 {[%emt 0:00:31]} g5 {[%emt 0:00:36]} 32. hxg6 {[%emt 0:00:17]} hxg6 {[%emt 0:00:02]} 33. Re5 {[%emt 0:00:28]} Kg7 {[%emt 0:03:00]} 34. Qe2 {[%emt 0:01:42]} Qc6 {[%emt 0:01:09]} 35. Re6 {[%emt 0:00:17]} Qc7 {[%emt 0:00:35]} 36. Rh3 {[%emt 0:00:41]} Rg8 {[%emt 0:00:49]} 37. Rxg6+ {[%emt 0:00:27]} Kf8 {[%emt 0:00:17]} 38. Rxg8+ {[%emt 0:00:21]} Kxg8 {[%emt 0:00:01]} 39. Qh5 {[%emt 0:00:15]} Kf8 {[%emt 0:00:16]} 40. Qxd5 {[%emt 0:00:15]} Qe7 {[%emt 0:00:12]} 41. Rh8+ {[%emt 0:00:48]} Kg7 {[%emt 0:00:00]} 42. Qh5 {[%emt 0:00:07]} 1-0

[Event "77th GEO-ch Women 2020"]
[Site "Tbilisi"]
[Date "2020.07.22"]
[Round "2.3"]
[White "Melia, Salome"]
[Black "Khukhashvili, Sopiko"]
[Result "1-0"]
[ECO "B51"]
[WhiteElo "2370"]
[BlackElo "2339"]
[Annotator "RC"]
[PlyCount "65"]
[EventDate "2020.07.21"]
[EventType "tourn"]
[EventCountry "GEO"]
[SourceTitle "playchess.com"]
[Source "ChessBase"]
[SourceQuality "1"]
[TimeControl "5400+30"]

1. e4 {[%emt 0:00:00]} c5 {[%emt 0:00:00]} 2. Nf3 {[%emt 0:00:00]} d6 {[%emt 0:00:00]} 3. Bb5+ {[%emt 0:00:10]} Nd7 {[%emt 0:00:40]} 4. Ba4 {[%emt 0:00:26]} Ngf6 {[%emt 0:00:53]} 5. O-O {[%emt 0:00:08]} Rb8 {[%emt 0:05:52]} 6. c4 {[%emt 0:01:17]} g6 {[%emt 0:01:40]} 7. Nc3 {[%emt 0:03:44]} Bg7 {[%emt 0:00:31]} 8. d3 {[%emt 0:01:20]} O-O {[%emt 0:00:44]} 9. h3 {[%emt 0:00:03]} a6 {[%emt 0:02:19]} 10. Be3 {[%emt 0:02:28]} h6 {[%emt 0:01:56]} 11. Qd2 {[%emt 0:05:22]} Kh7 {[%emt 0:00:44]} 12. Rab1 {[%emt 0:01:07]} Ne8 {[%emt 0:07:54]} 13. d4 {[%emt 0:07:13]} cxd4 {[%emt 0:02:17]} 14. Bxd4 {[%emt 0:00:15]} Qa5 {[%emt 0:13:17]} 15. b4 {[%emt 0:09:35]} Qh5 {[%emt 0:01:40]} 16. Nd5 {[%emt 0:19:46]} Ne5 {[%emt 0:04:48]} 17. Nxe5 {[%emt 0:04:44]} Bxe5 {[%emt 0:05:00]} 18. Ba7 {[%emt 0:11:12]} Ra8 {[%emt 0:02:09]} 19. Be3 {[%emt 0:00:16]} Nf6 {[%emt 0:02:26]} 20. f4 {[%emt 0:08:34]} Nxe4 {[%emt 0:21:55]} 21. Qd3 {[%emt 0:04:39]} Ng3 {[%emt 0:01:38]} 22. fxe5 {[%emt 0:03:39]} dxe5 {[%emt 0:00:29]} 23. Rb2 {[%emt 0:06:21]} b5 {[%emt 0:04:59]} 24. Bd1 {[%emt 0:02:45]} bxc4 {[%emt 0:07:03]} 25. Qxc4 {[%emt 0:01:54]} Nxf1 {[%emt 0:00:14]} 26. Bxh5 {[%emt 0:00:20]} Ng3 {[%emt 0:00:17]} 27. Bf3 {[%emt 0:01:11]} Be6 {[%emt 0:00:06]} 28. Qc7 {[%emt 0:01:38]} e4 {[%emt 0:02:02]} 29. Qxg3 {[%emt 0:00:18]} exf3 {[%emt 0:01:00]} 30. Nc7 {[%emt 0:00:41]} Rad8 {[%emt 0:01:11]} 31. Nxe6 {[%emt 0:00:08]} fxe6 {[%emt 0:00:03]} 32. gxf3 {[%emt 0:00:37]} Rd3 {[%emt 0:00:40]} 33. Re2 {[%emt 0:00:34]} 1-0

[Event "77th GEO-ch Women 2020"]
[Site "Tbilisi"]
[Date "2020.07.23"]
[Round "3.1"]
[White "Tsotsonava, Elene"]
[Black "Khotenashvili, Bela"]
[Result "0-1"]
[ECO "C88"]
[WhiteElo "2012"]
[BlackElo "2458"]
[Annotator "ChessBase"]
[PlyCount "82"]
[EventDate "2020.07.21"]
[EventType "tourn"]
[EventCountry "GEO"]
[SourceTitle "playchess.com"]
[Source "ChessBase"]
[SourceQuality "1"]
[TimeControl "5400+30"]

1. e4 {[%emt 0:00:00]} e5 {[%emt 0:00:00]} 2. Nf3 {[%emt 0:00:00]} Nc6 {[%emt 0:00:00]} 3. Bb5 {[%emt 0:00:00]} a6 {[%emt 0:00:00]} 4. Ba4 {[%emt 0:00:00]} Nf6 {[%emt 0:00:04]} 5. O-O {[%emt 0:00:00]} b5 {[%emt 0:02:50]} 6. Bb3 {[%emt 0:00:02]} Be7 {[%emt 0:00:04]} 7. Re1 {[%emt 0:00:17]} O-O {[%emt 0:00:06]} 8. a4 {[%emt 0:00:23]} b4 {[%emt 0:00:06]} 9. d3 {[%emt 0:05:02]} d6 {[%emt 0:00:19]} 10. a5 {[%emt 0:05:07]} Be6 {[%emt 0:00:17]} 11. Nbd2 {[%emt 0:03:49]} Rb8 {[%emt 0:00:56]} 12. Bc4 {[%emt 0:04:23]} Qc8 {[%emt 0:06:27]} 13. h3 {[%emt 0:04:45]} Nd7 {[%emt 0:10:04]} 14. Nb3 {[%emt 0:08:33]} Nd8 {[%emt 0:15:16]} 15. Bxe6 {[%emt 0:06:15]} fxe6 {[%emt 0:02:00]} 16. Bg5 {[%emt 0:09:22]} Bxg5 {[%emt 0:05:12]} 17. Nxg5 {[%emt 0:00:03]} c5 {[%emt 0:03:37]} 18. Nd2 {[%emt 0:06:11]} h6 {[%emt 0:02:32]} 19. Ngf3 {[%emt 0:00:21]} Nc6 {[%emt 0:00:07]} 20. Nc4 {[%emt 0:06:18]} Qc7 {[%emt 0:00:42]} 21. Nh4 {[%emt 0:02:56]} Rf4 {[%emt 0:09:41]} 22. Ng6 {[%emt 0:03:27]} Rf6 {[%emt 0:00:28]} 23. Qh5 {[%emt 0:02:34]} Kh7 {[%emt 0:05:13]} 24. Nh4 {[%emt 0:00:06]} Rbf8 {[%emt 0:04:05]} 25. Ne3 {[%emt 0:02:54]} g5 {[%emt 0:02:19]} 26. Ng4 {[%emt 0:03:50]} gxh4 {[%emt 0:00:43]} 27. Nxf6+ {[%emt 0:00:05]} Rxf6 {[%emt 0:05:22]} 28. Qxh4 {[%emt 0:07:49]} Nd4 {[%emt 0:02:09]} 29. Rac1 {[%emt 0:03:41]} Qd8 {[%emt 0:09:29]} 30. c3 {[%emt 0:04:15]} Nf3+ {[%emt 0:01:01]} 31. gxf3 {[%emt 0:00:36]} Rg6+ {[%emt 0:00:04]} 32. Qg3 {[%emt 0:03:13]} Qxa5 {[%emt 0:01:27]} 33. Kh2 {[%emt 0:05:34]} Rxg3 {[%emt 0:00:09]} 34. fxg3 {[%emt 0:00:03]} Qa2 {[%emt 0:02:28]} 35. Re2 {[%emt 0:00:15]} a5 {[%emt 0:00:47]} 36. f4 {[%emt 0:02:42]} b3 {[%emt 0:03:24]} 37. fxe5 {[%emt 0:01:07]} Nxe5 {[%emt 0:00:07]} 38. d4 {[%emt 0:01:20]} Nd3 {[%emt 0:01:37]} 39. Rf1 {[%emt 0:00:21]} a4 {[%emt 0:01:08]} 40. Rd2 {[%emt 0:01:26]} a3 {[%emt 0:02:14]} 41. Rxd3 {[%emt 0:00:09]} axb2 {[%emt 0:00:06]} 0-1

[Event "77th GEO-ch Women 2020"]
[Site "Tbilisi"]
[Date "2020.07.23"]
[Round "3.4"]
[White "Batsiashvili, Nino"]
[Black "Melia, Salome"]
[Result "0-1"]
[ECO "D35"]
[WhiteElo "2457"]
[BlackElo "2370"]
[Annotator "ChessBase"]
[PlyCount "84"]
[EventDate "2020.07.21"]
[EventType "tourn"]
[EventCountry "GEO"]
[SourceTitle "playchess.com"]
[Source "ChessBase"]
[SourceQuality "1"]
[TimeControl "5400+30"]

1. d4 {[%emt 0:00:00]} d5 {[%emt 0:00:09]} 2. c4 {[%emt 0:00:00]} e6 {[%emt 0:00:05]} 3. Nc3 {[%emt 0:00:00]} Nf6 {[%emt 0:00:06]} 4. cxd5 {[%emt 0:00:00]} Nxd5 {[%emt 0:00:06]} 5. e4 {[%emt 0:00:00]} Nxc3 {[%emt 0:00:06]} 6. bxc3 {[%emt 0:00:00]} c5 {[%emt 0:00:05]} 7. Rb1 {[%emt 0:00:16]} Be7 {[%emt 0:00:26]} 8. Nf3 {[%emt 0:00:14]} O-O {[%emt 0:00:14]} 9. h4 {[%emt 0:00:04]} cxd4 {[%emt 0:01:34]} 10. cxd4 {[%emt 0:00:19]} b6 {[%emt 0:00:14]} 11. h5 {[%emt 0:00:51]} Bb7 {[%emt 0:02:23]} 12. Bd3 {[%emt 0:06:00]} Nc6 13. h6 {[%emt 0:02:04]} g6 {[%emt 0:01:56]} 14. Be2 {[%emt 0:02:55]} Rc8 {[%emt 0:09:25]} 15. a3 Qd6 {[%emt 0:16:04]} 16. O-O {[%emt 0:15:46]} Rfd8 {[%emt 0:02:00]} 17. Be3 {[%emt 0:14:43]} Qxa3 {[%emt 0:05:21]} 18. Ra1 {[%emt 0:04:14]} Qd6 {[%emt 0:05:50]} 19. Qb1 {[%emt 0:00:17]} Qb4 {[%emt 0:07:50]} 20. Qd3 {[%emt 0:01:14]} Bf6 {[%emt 0:04:51]} 21. Rfd1 {[%emt 0:06:58]} Rc7 {[%emt 0:10:21]} 22. Rab1 {[%emt 0:12:20]} Qf8 {[%emt 0:01:39]} 23. Qb5 {[%emt 0:00:58]} Rcd7 {[%emt 0:03:40]} 24. Qa4 {[%emt 0:05:54]} Na5 {[%emt 0:02:19]} 25. e5 {[%emt 0:05:52]} Be7 {[%emt 0:01:07]} 26. Rbc1 {[%emt 0:04:06]} Bd5 {[%emt 0:03:22]} 27. Nd2 {[%emt 0:01:10]} Bb4 {[%emt 0:09:57]} 28. Bb5 {[%emt 0:00:51]} Rb7 {[%emt 0:01:32]} 29. Rb1 {[%emt 0:02:20]} Ba3 {[%emt 0:01:29]} 30. Ra1 {[%emt 0:07:37]} Bb4 {[%emt 0:00:16]} 31. Rdb1 {[%emt 0:01:03]} Bc3 {[%emt 0:05:41]} 32. Ra3 {[%emt 0:01:26]} Rc7 {[%emt 0:02:52]} 33. Ba6 {[%emt 0:04:04]} Bxd2 {[%emt 0:00:55]} 34. Bxd2 {[%emt 0:00:03]} Nc4 {[%emt 0:00:59]} 35. Rc1 {[%emt 0:01:59]} Nb2 {[%emt 0:01:48]} 36. Rxc7 {[%emt 0:00:41]} Nxa4 {[%emt 0:00:07]} 37. Rxa4 {[%emt 0:00:04]} Qe8 {[%emt 0:01:00]} 38. Ra1 {[%emt 0:00:39]} b5 {[%emt 0:00:36]} 39. Rac1 {[%emt 0:00:18]} Bc4 {[%emt 0:00:26]} 40. Bb4 {[%emt 0:02:05]} Rb8 {[%emt 0:00:37]} 41. Bd6 {[%emt 0:00:20]} Qd8 {[%emt 0:00:27]} 42. Rxa7 {[%emt 0:00:41]} Ra8 {[%emt 0:00:17]} 0-1

[Event "77th GEO-ch Women 2020"]
[Site "Tbilisi"]
[Date "2020.07.23"]
[Round "3.5"]
[White "Javakhishvili, Lela"]
[Black "Arabidze, Meri"]
[Result "1/2-1/2"]
[ECO "E15"]
[WhiteElo "2475"]
[BlackElo "2428"]
[Annotator "ChessBase"]
[PlyCount "64"]
[EventDate "2020.07.21"]
[EventType "tourn"]
[EventCountry "GEO"]
[SourceTitle "playchess.com"]
[Source "ChessBase"]
[SourceQuality "1"]
[TimeControl "5400+30"]

1. d4 {[%emt 0:00:00]} Nf6 {[%emt 0:00:00]} 2. c4 {[%emt 0:00:00]} e6 {[%emt 0:00:00]} 3. Nf3 {[%emt 0:00:15]} b6 {[%emt 0:00:00]} 4. g3 {[%emt 0:00:26]} Bb7 {[%emt 0:00:12]} 5. Bg2 {[%emt 0:00:06]} g6 {[%emt 0:00:22]} 6. Nc3 {[%emt 0:00:58]} Bg7 {[%emt 0:00:17]} 7. Qc2 {[%emt 0:01:54]} d5 {[%emt 0:01:25]} 8. cxd5 {[%emt 0:00:47]} exd5 {[%emt 0:03:54]} 9. O-O {[%emt 0:01:14]} O-O {[%emt 0:00:16]} 10. Bf4 {[%emt 0:02:18]} Na6 {[%emt 0:03:04]} 11. Rad1 {[%emt 0:04:36]} Re8 {[%emt 0:05:04]} 12. a3 {[%emt 0:07:35]} Ne4 {[%emt 0:14:36]} 13. b4 {[%emt 0:13:59]} Nxc3 {[%emt 0:15:39]} 14. Qxc3 {[%emt 0:00:05]} c5 {[%emt 0:01:32]} 15. bxc5 {[%emt 0:16:46]} Nxc5 {[%emt 0:02:20]} 16. Ne5 {[%emt 0:01:25]} Ne6 {[%emt 0:03:36]} 17. Be3 {[%emt 0:07:24]} Bxe5 {[%emt 0:15:24]} 18. dxe5 {[%emt 0:00:07]} d4 {[%emt 0:00:07]} 19. Bxd4 {[%emt 0:01:50]} Bxg2 {[%emt 0:00:33]} 20. Kxg2 {[%emt 0:00:41]} Rc8 {[%emt 0:03:16]} 21. Qe3 {[%emt 0:11:03]} Qd5+ {[%emt 0:01:32]} 22. Qf3 {[%emt 0:01:12]} Qxf3+ {[%emt 0:00:29]} 23. Kxf3 {[%emt 0:04:36]} Nxd4+ {[%emt 0:00:50]} 24. Rxd4 {[%emt 0:00:04]} Rxe5 {[%emt 0:02:57]} 25. Rfd1 {[%emt 0:02:19]} Rc2 {[%emt 0:03:38]} 26. R1d2 {[%emt 0:00:35]} Rxd2 {[%emt 0:02:40]} 27. Rxd2 {[%emt 0:00:06]} Ra5 {[%emt 0:00:05]} 28. Rd3 {[%emt 0:00:06]} Kf8 {[%emt 0:00:24]} 29. e4 {[%emt 0:00:43]} Ke7 {[%emt 0:00:24]} 30. h4 {[%emt 0:01:24]} h5 {[%emt 0:02:17]} 31. Ke3 {[%emt 0:01:58]} Ra4 {[%emt 0:01:29]} 32. Kf4 {[%emt 0:02:04]} Ra5 {[%emt 0:01:22]} 1/2-1/2